[Event "Titled Tuesday Blitz October 31 Early 2023"]
[White "Marcziter, Dmitrii"]
[Black "Lehtosaari, Mauri"]
[WhiteFideId "13900765"]
[BlackFideId "501999"]
[WhiteElo "2380"]
[BlackElo "2504"]
[Result "0-1"]
[Round "6"]
[TimeControl "180+1"]
[Date "2023.10.31"]
[WhiteClock "0:00:18"]
[BlackClock "0:00:15"]
[Board "108"]

1. d4 {[%clk 0:03:00]}  d5 {[%clk 0:02:58]} 2. c4 {[%clk 0:02:59]}  c6 {[%clk 0:02:58]} 3. Nf3 {[%clk 0:02:59]}  Nf6 {[%clk 0:02:58]} 4. Nc3 {[%clk 0:02:58]}  dxc4 {[%clk 0:02:58]} 5. a4 {[%clk 0:02:58]}  Bf5 {[%clk 0:02:58]} 6. e3 {[%clk 0:02:58]}  e6 {[%clk 0:02:58]} 7. a5 {[%clk 0:02:57]}  Bb4 {[%clk 0:02:01]} 8. Qa4 {[%clk 0:02:54]}  Qe7 {[%clk 0:01:52]} 9. Bxc4 {[%clk 0:02:52]}  Ne4 {[%clk 0:01:45]} 10. Bd2 {[%clk 0:02:49]}  Nxd2 {[%clk 0:01:43]} 11. Nxd2 {[%clk 0:02:48]}  O-O {[%clk 0:01:40]} 12. O-O {[%clk 0:02:45]}  Nd7 {[%clk 0:01:33]} 13. e4 {[%clk 0:02:37]}  Bg6 {[%clk 0:01:32]} 14. Rfe1 {[%clk 0:02:28]}  h6 {[%clk 0:01:20]} 15. Qb3 {[%clk 0:02:23]}  Rab8 {[%clk 0:01:15]} 16. h3 {[%clk 0:02:20]}  Kh8 {[%clk 0:01:02]} 17. Nf3 {[%clk 0:02:18]}  b5 {[%clk 0:00:56]} 18. axb6 {[%clk 0:02:17]}  Nxb6 {[%clk 0:00:52]} 19. Bd3 {[%clk 0:02:13]}  a5 {[%clk 0:00:52]} 20. Qc2 {[%clk 0:02:07]}  Rfc8 {[%clk 0:00:49]} 21. e5 {[%clk 0:02:00]}  Bxd3 {[%clk 0:00:46]} 22. Qxd3 {[%clk 0:02:00]}  c5 {[%clk 0:00:46]} 23. Red1 {[%clk 0:01:52]}  cxd4 {[%clk 0:00:45]} 24. Nxd4 {[%clk 0:01:45]}  Nc4 {[%clk 0:00:45]} 25. Na4 {[%clk 0:01:23]}  Nxe5 {[%clk 0:00:42]} 26. Qe4 {[%clk 0:01:23]}  Ng6 {[%clk 0:00:37]} 27. Nc6 {[%clk 0:01:18]}  Qb7 {[%clk 0:00:34]} 28. Rdc1 {[%clk 0:01:06]}  Rc7 {[%clk 0:00:32]} 29. Rc4 {[%clk 0:00:35]}  Rbc8 {[%clk 0:00:30]} 30. Rac1 {[%clk 0:00:35]}  Qb5 {[%clk 0:00:27]} 31. b3 {[%clk 0:00:34]}  Qd5 {[%clk 0:00:23]} 32. Nb6 {[%clk 0:00:22]}  Qxe4 {[%clk 0:00:21]} 33. Rxe4 {[%clk 0:00:22]}  Rxc6 {[%clk 0:00:19]} 34. Rxc6 {[%clk 0:00:19]}  Rxc6 {[%clk 0:00:20]} 35. Nd7 {[%clk 0:00:19]}  Rc1+ {[%clk 0:00:19]} 36. Kh2 {[%clk 0:00:19]}  Kg8 {[%clk 0:00:18]} 37. g3 {[%clk 0:00:19]}  Rc7 {[%clk 0:00:17]} 38. Nb8 {[%clk 0:00:17]}  Rc2 {[%clk 0:00:16]} 39. Kg2 {[%clk 0:00:17]}  Bc5 {[%clk 0:00:16]} 40. Ra4 {[%clk 0:00:14]}  Rxf2+ {[%clk 0:00:15]} 41. Kh1 {[%clk 0:00:15]}  Bb4 {[%clk 0:00:14]} 42. Nc6 {[%clk 0:00:15]}  Rb2 {[%clk 0:00:14]} 43. Nxb4 {[%clk 0:00:15]}  axb4 {[%clk 0:00:15]} 44. Rxb4 {[%clk 0:00:15]}  Ne5 {[%clk 0:00:15]} 45. Rb8+ {[%clk 0:00:14]}  Kh7 {[%clk 0:00:15]} 46. Kg1 {[%clk 0:00:14]}  g5 {[%clk 0:00:14]} 47. b4 {[%clk 0:00:13]}  Nc6 {[%clk 0:00:14]} 48. Rb7 {[%clk 0:00:12]}  Kg6 {[%clk 0:00:14]} 49. b5 {[%clk 0:00:12]}  Na5 {[%clk 0:00:14]} 50. Rb8 {[%clk 0:00:12]}  Nc4 {[%clk 0:00:13]} 51. g4 {[%clk 0:00:11]}  Nd6 {[%clk 0:00:09]} 52. Kf1 {[%clk 0:00:10]}  Kg7 {[%clk 0:00:10]} 53. Ke1 {[%clk 0:00:11]}  Rxb5 {[%clk 0:00:10]} 54. Rd8 {[%clk 0:00:10]}  Ne4 {[%clk 0:00:09]} 55. Ke2 {[%clk 0:00:10]}  Nf6 {[%clk 0:00:09]} 56. Ke3 {[%clk 0:00:11]}  Rb3+ {[%clk 0:00:10]} 57. Kd2 {[%clk 0:00:11]}  Rxh3 {[%clk 0:00:10]} 58. Kc2 {[%clk 0:00:12]}  Rg3 {[%clk 0:00:11]} 59. Rc8 {[%clk 0:00:12]}  Rxg4 {[%clk 0:00:11]} 60. Ra8 {[%clk 0:00:13]}  Rf4 {[%clk 0:00:12]} 61. Ra7 {[%clk 0:00:13]}  h5 {[%clk 0:00:12]} 62. Rb7 {[%clk 0:00:14]}  h4 {[%clk 0:00:12]} 63. Rc7 {[%clk 0:00:15]}  h3 {[%clk 0:00:13]} 64. Rd7 {[%clk 0:00:16]}  h2 {[%clk 0:00:13]} 65. Re7 {[%clk 0:00:17]}  h1=Q {[%clk 0:00:13]} 66. Ra7 {[%clk 0:00:18]}  Qh2+ {[%clk 0:00:13]} 67. Kd3 {[%clk 0:00:17]}  Qg3+ {[%clk 0:00:14]} 68. Ke2 {[%clk 0:00:17]}  Rf2+ {[%clk 0:00:14]} 69. Ke1 {[%clk 0:00:18]}  Qg1# {[%clk 0:00:15]} 0-1


[Site "https://www.chess.com"]

[Event "Titled Tuesday Blitz October 31 Early 2023"]
[White "Bilan, Danila"]
[Black "Szente Varga, Fruzsina"]
[WhiteFideId "24161918"]
[BlackFideId "712264"]
[WhiteElo "2478"]
[BlackElo "2326"]
[Result "1-0"]
[Round "6"]
[TimeControl "180+1"]
[Date "2023.10.31"]
[WhiteClock "0:01:20"]
[BlackClock "0:00:14"]
[Board "114"]

1. d4 {[%clk 0:02:54]}  Nf6 {[%clk 0:02:48]} 2. Nf3 {[%clk 0:02:54]}  g6 {[%clk 0:02:46]} 3. Bg5 {[%clk 0:02:54]}  Bg7 {[%clk 0:02:41]} 4. c3 {[%clk 0:02:54]}  O-O {[%clk 0:02:29]} 5. Nbd2 {[%clk 0:02:54]}  d5 {[%clk 0:02:28]} 6. e3 {[%clk 0:02:52]}  Bg4 {[%clk 0:02:19]} 7. Qb3 {[%clk 0:02:49]}  b6 {[%clk 0:02:02]} 8. Ne5 {[%clk 0:02:49]}  Be6 {[%clk 0:01:59]} 9. Be2 {[%clk 0:02:29]}  c5 {[%clk 0:01:56]} 10. O-O {[%clk 0:02:26]}  Nbd7 {[%clk 0:01:54]} 11. Nc6 {[%clk 0:02:23]}  Qc7 {[%clk 0:01:06]} 12. Nxe7+ {[%clk 0:02:19]}  Kh8 {[%clk 0:01:06]} 13. f4 {[%clk 0:02:19]}  Nb8 {[%clk 0:00:48]} 14. Bxf6 {[%clk 0:02:00]}  Bxf6 {[%clk 0:00:49]} 15. Nxd5 {[%clk 0:02:01]}  Qb7 {[%clk 0:00:30]} 16. Bf3 {[%clk 0:01:53]}  Nc6 {[%clk 0:00:27]} 17. Qb5 {[%clk 0:01:27]}  cxd4 {[%clk 0:00:21]} 18. Nxf6 {[%clk 0:01:24]}  Rac8 {[%clk 0:00:14]} 19. cxd4 {[%clk 0:01:20]} 1-0


[Site "https://www.chess.com"]

[Event "Titled Tuesday Blitz October 31 Early 2023"]
[White "Devaev, Alexander"]
[Black "gpsji27"]
[WhiteFideId "4169395"]
[WhiteElo "2458"]
[BlackElo "2302"]
[Result "1-0"]
[Round "6"]
[TimeControl "180+1"]
[Date "2023.10.31"]
[WhiteClock "0:00:18"]
[BlackClock "0:00:03"]
[Board "118"]

1. Nf3 {[%clk 0:03:00]}  d5 {[%clk 0:02:58]} 2. c4 {[%clk 0:03:00]}  d4 {[%clk 0:02:58]} 3. d3 {[%clk 0:03:00]}  Nf6 {[%clk 0:02:55]} 4. e3 {[%clk 0:03:00]}  Nc6 {[%clk 0:02:30]} 5. Be2 {[%clk 0:02:50]}  g6 {[%clk 0:02:26]} 6. O-O {[%clk 0:02:39]}  Bg7 {[%clk 0:02:23]} 7. exd4 {[%clk 0:02:32]}  Nxd4 {[%clk 0:02:23]} 8. Nxd4 {[%clk 0:02:33]}  Qxd4 {[%clk 0:02:24]} 9. Nc3 {[%clk 0:02:33]}  Bf5 {[%clk 0:02:19]} 10. Be3 {[%clk 0:02:33]}  Qd7 {[%clk 0:02:19]} 11. d4 {[%clk 0:02:33]}  c6 {[%clk 0:02:18]} 12. h3 {[%clk 0:02:22]}  h5 {[%clk 0:02:03]} 13. Qb3 {[%clk 0:02:11]}  O-O {[%clk 0:01:52]} 14. Rad1 {[%clk 0:02:11]}  Rfd8 {[%clk 0:01:49]} 15. Bf3 {[%clk 0:02:09]}  Qe8 {[%clk 0:01:44]} 16. Rfe1 {[%clk 0:02:06]}  Qf8 {[%clk 0:01:42]} 17. d5 {[%clk 0:01:57]}  cxd5 {[%clk 0:01:35]} 18. cxd5 {[%clk 0:01:58]}  Rd7 {[%clk 0:01:19]} 19. Rd4 {[%clk 0:01:40]}  Ne8 {[%clk 0:01:06]} 20. Rd2 {[%clk 0:00:56]}  Nd6 {[%clk 0:01:02]} 21. g4 {[%clk 0:00:52]}  hxg4 {[%clk 0:00:56]} 22. hxg4 {[%clk 0:00:53]}  Bxc3 {[%clk 0:00:51]} 23. bxc3 {[%clk 0:00:20]}  Be4 {[%clk 0:00:49]} 24. Be2 {[%clk 0:00:21]}  g5 {[%clk 0:00:07]} 25. f3 {[%clk 0:00:21]}  Bg6 {[%clk 0:00:06]} 26. Bxg5 {[%clk 0:00:21]}  Rc8 {[%clk 0:00:05]} 27. c4 {[%clk 0:00:20]}  Rdc7 {[%clk 0:00:05]} 28. Rd4 {[%clk 0:00:19]}  f6 {[%clk 0:00:05]} 29. Be3 {[%clk 0:00:19]}  Qg7 {[%clk 0:00:05]} 30. Bf2 {[%clk 0:00:19]}  Bf7 {[%clk 0:00:05]} 31. Bf1 {[%clk 0:00:19]}  Nf5 {[%clk 0:00:04]} 32. Rde4 {[%clk 0:00:18]}  Nd6 {[%clk 0:00:05]} 33. Rxe7 {[%clk 0:00:18]}  Rxe7 {[%clk 0:00:04]} 34. Rxe7 {[%clk 0:00:18]}  Qf8 {[%clk 0:00:05]} 35. Re1 {[%clk 0:00:17]}  f5 {[%clk 0:00:05]} 36. Bg2 {[%clk 0:00:14]}  fxg4 {[%clk 0:00:05]} 37. fxg4 {[%clk 0:00:15]}  Bg6 {[%clk 0:00:06]} 38. c5 {[%clk 0:00:14]}  Nf7 {[%clk 0:00:04]} 39. d6 {[%clk 0:00:14]}  Kg7 {[%clk 0:00:04]} 40. Qe6 {[%clk 0:00:14]}  Ng5 {[%clk 0:00:04]} 41. Bd4+ {[%clk 0:00:15]}  Kh7 {[%clk 0:00:04]} 42. Qe5 {[%clk 0:00:13]}  Nf7 {[%clk 0:00:02]} 43. Qh2+ {[%clk 0:00:14]}  Nh6 {[%clk 0:00:02]} 44. g5 {[%clk 0:00:13]}  Bf5 {[%clk 0:00:02]} 45. Qxh6+ {[%clk 0:00:13]}  Qxh6 {[%clk 0:00:03]} 46. gxh6 {[%clk 0:00:14]}  Kxh6 {[%clk 0:00:04]} 47. Re7 {[%clk 0:00:15]}  Rg8 {[%clk 0:00:04]} 48. Kf2 {[%clk 0:00:15]}  Rg4 {[%clk 0:00:04]} 49. Be3+ {[%clk 0:00:16]}  Kg6 {[%clk 0:00:05]} 50. Bf3 {[%clk 0:00:16]}  Rc4 {[%clk 0:00:04]} 51. d7 {[%clk 0:00:16]}  Rc2+ {[%clk 0:00:05]} 52. Be2 {[%clk 0:00:16]}  Bxd7 {[%clk 0:00:04]} 53. Rxd7 {[%clk 0:00:16]}  Rxa2 {[%clk 0:00:04]} 54. Rxb7 {[%clk 0:00:17]}  a5 {[%clk 0:00:03]} 55. Kf3 {[%clk 0:00:17]}  a4 {[%clk 0:00:03]} 56. Bd3+ {[%clk 0:00:18]}  Kf6 {[%clk 0:00:04]} 57. Bd4+ {[%clk 0:00:18]}  Ke6 {[%clk 0:00:04]} 58. Ke4 {[%clk 0:00:18]}  Ra1 {[%clk 0:00:03]} 59. Bc4# {[%clk 0:00:18]} 1-0


[Site "https://www.chess.com"]

[Event "Titled Tuesday Blitz October 31 Early 2023"]
[White "Pinto, Daniel"]
[Black "Malikova777"]
[WhiteFideId "3303144"]
[WhiteElo "2457"]
[BlackElo "2291"]
[Result "0-1"]
[Round "6"]
[TimeControl "180+1"]
[Date "2023.10.31"]
[WhiteClock "0:00:00"]
[BlackClock "0:00:56"]
[Board "119"]

1. e4 {[%clk 0:02:55]}  c6 {[%clk 0:02:59]} 2. d4 {[%clk 0:02:53]}  d5 {[%clk 0:03:00]} 3. e5 {[%clk 0:02:53]}  c5 {[%clk 0:03:01]} 4. dxc5 {[%clk 0:02:52]}  e6 {[%clk 0:03:01]} 5. a3 {[%clk 0:02:47]}  Bxc5 {[%clk 0:03:02]} 6. b4 {[%clk 0:02:47]}  Bb6 {[%clk 0:03:02]} 7. Bb2 {[%clk 0:02:45]}  Ne7 {[%clk 0:03:00]} 8. Bd3 {[%clk 0:02:38]}  Nbc6 {[%clk 0:02:56]} 9. Nf3 {[%clk 0:02:38]}  Ng6 {[%clk 0:02:55]} 10. O-O {[%clk 0:01:52]}  Nf4 {[%clk 0:02:51]} 11. Nbd2 {[%clk 0:01:38]}  Nxd3 {[%clk 0:02:50]} 12. cxd3 {[%clk 0:01:39]}  O-O {[%clk 0:02:50]} 13. Nb3 {[%clk 0:01:32]}  Bd7 {[%clk 0:02:49]} 14. Rc1 {[%clk 0:01:31]}  Ne7 {[%clk 0:02:49]} 15. Nc5 {[%clk 0:01:29]}  Bxc5 {[%clk 0:02:45]} 16. Rxc5 {[%clk 0:01:29]}  b6 {[%clk 0:02:45]} 17. Rc1 {[%clk 0:01:20]}  a5 {[%clk 0:02:45]} 18. bxa5 {[%clk 0:00:47]}  bxa5 {[%clk 0:02:41]} 19. Qd2 {[%clk 0:00:44]}  Nf5 {[%clk 0:02:27]} 20. Nd4 {[%clk 0:00:27]}  Nxd4 {[%clk 0:02:23]} 21. Bxd4 {[%clk 0:00:28]}  Qh4 {[%clk 0:02:16]} 22. Qe3 {[%clk 0:00:15]}  Ba4 {[%clk 0:02:08]} 23. Rc7 {[%clk 0:00:12]}  Rfc8 {[%clk 0:01:55]} 24. Rfc1 {[%clk 0:00:12]}  Rxc7 {[%clk 0:01:56]} 25. Rxc7 {[%clk 0:00:13]}  Bb3 {[%clk 0:01:50]} 26. h3 {[%clk 0:00:12]}  a4 {[%clk 0:01:49]} 27. Bc5 {[%clk 0:00:12]}  Qh5 {[%clk 0:01:44]} 28. Kh2 {[%clk 0:00:10]}  h6 {[%clk 0:01:41]} 29. Bd6 {[%clk 0:00:10]}  Qf5 {[%clk 0:01:37]} 30. g4 {[%clk 0:00:09]}  Qg5 {[%clk 0:01:32]} 31. Qxg5 {[%clk 0:00:05]}  hxg5 {[%clk 0:01:33]} 32. Be7 {[%clk 0:00:05]}  Rb8 {[%clk 0:01:27]} 33. Bxg5 {[%clk 0:00:05]}  Bd1 {[%clk 0:01:27]} 34. Bd2 {[%clk 0:00:04]}  Rb2 {[%clk 0:01:23]} 35. Be3 {[%clk 0:00:04]}  Rb3 {[%clk 0:01:21]} 36. Rc8+ {[%clk 0:00:05]}  Kh7 {[%clk 0:01:21]} 37. Bc5 {[%clk 0:00:05]}  Rxd3 {[%clk 0:01:20]} 38. Rf8 {[%clk 0:00:05]}  Kg6 {[%clk 0:01:19]} 39. h4 {[%clk 0:00:04]}  Bxg4 {[%clk 0:01:18]} 40. Ra8 {[%clk 0:00:04]}  Bd1 {[%clk 0:01:18]} 41. Rd8 {[%clk 0:00:04]}  Rf3 {[%clk 0:01:14]} 42. Kg2 {[%clk 0:00:04]}  Rf4 {[%clk 0:01:13]} 43. Be7 {[%clk 0:00:04]}  Re4 {[%clk 0:01:11]} 44. Bd6 {[%clk 0:00:03]}  Rxh4 {[%clk 0:01:11]} 45. Rb8 {[%clk 0:00:03]}  Rc4 {[%clk 0:01:10]} 46. Rb4 {[%clk 0:00:02]}  Rxb4 {[%clk 0:01:09]} 47. Bxb4 {[%clk 0:00:03]}  Kf5 {[%clk 0:01:09]} 48. Bc3 {[%clk 0:00:03]}  Ke4 {[%clk 0:01:09]} 49. Kg3 {[%clk 0:00:03]}  Kd3 {[%clk 0:01:08]} 50. Bb4 {[%clk 0:00:03]}  f6 {[%clk 0:01:08]} 51. exf6 {[%clk 0:00:02]}  gxf6 {[%clk 0:01:09]} 52. Be7 {[%clk 0:00:03]}  f5 {[%clk 0:01:09]} 53. Kf4 {[%clk 0:00:03]}  Kd4 {[%clk 0:01:08]} 54. Bf6+ {[%clk 0:00:03]}  Kc4 {[%clk 0:01:08]} 55. Ke5 {[%clk 0:00:04]}  d4 {[%clk 0:01:00]} 56. Kxe6 {[%clk 0:00:04]}  Bc2 {[%clk 0:01:01]} 57. Bg5 {[%clk 0:00:04]}  Kc3 {[%clk 0:01:00]} 58. Bf6 {[%clk 0:00:03]}  Kc4 {[%clk 0:00:57]} 59. Bg5 {[%clk 0:00:03]}  Be4 {[%clk 0:00:55]} 60. Kd6 {[%clk 0:00:03]}  d3 {[%clk 0:00:55]} 61. Bd2 {[%clk 0:00:03]}  Kb3 {[%clk 0:00:55]} 62. Ke5 {[%clk 0:00:00]}  Kc2 {[%clk 0:00:56]} 0-1


[Site "https://www.chess.com"]

[Event "Titled Tuesday Blitz October 31 Early 2023"]
[White "PoXerStar"]
[Black "Tharushi, T H D Niklesha"]
[BlackFideId "9918264"]
[WhiteElo "2445"]
[BlackElo "2245"]
[Result "0-1"]
[Round "6"]
[TimeControl "180+1"]
[Date "2023.10.31"]
[WhiteClock "0:00:26"]
[BlackClock "0:00:19"]
[Board "122"]

1. Nf3 {[%clk 0:02:58]}  Nf6 {[%clk 0:02:57]} 2. b3 {[%clk 0:02:57]}  g6 {[%clk 0:02:56]} 3. Bb2 {[%clk 0:02:58]}  Bg7 {[%clk 0:02:53]} 4. c4 {[%clk 0:02:58]}  O-O {[%clk 0:02:52]} 5. Nc3 {[%clk 0:02:59]}  d5 {[%clk 0:02:51]} 6. e3 {[%clk 0:02:49]}  c5 {[%clk 0:02:47]} 7. d3 {[%clk 0:02:42]}  Nc6 {[%clk 0:02:45]} 8. Be2 {[%clk 0:02:37]}  Bg4 {[%clk 0:02:41]} 9. O-O {[%clk 0:02:33]}  dxc4 {[%clk 0:02:20]} 10. dxc4 {[%clk 0:02:28]}  Bf5 {[%clk 0:02:20]} 11. a3 {[%clk 0:01:57]}  e6 {[%clk 0:01:55]} 12. Qc1 {[%clk 0:01:46]}  Qb6 {[%clk 0:01:53]} 13. Na4 {[%clk 0:01:33]}  Qxb3 {[%clk 0:01:44]} 14. Nxc5 {[%clk 0:01:33]}  Qb6 {[%clk 0:01:41]} 15. Bxf6 {[%clk 0:01:21]}  Bxf6 {[%clk 0:01:32]} 16. Nd7 {[%clk 0:01:20]}  Qd8 {[%clk 0:01:29]} 17. Nxf8 {[%clk 0:01:01]}  Bxa1 {[%clk 0:01:26]} 18. Nxe6 {[%clk 0:00:58]}  Bxe6 {[%clk 0:01:04]} 19. Qxa1 {[%clk 0:00:57]}  Na5 {[%clk 0:01:01]} 20. Qc3 {[%clk 0:00:50]}  Rc8 {[%clk 0:01:00]} 21. Rd1 {[%clk 0:00:50]}  Qb6 {[%clk 0:00:51]} 22. c5 {[%clk 0:00:50]}  Rxc5 {[%clk 0:00:46]} 23. Qf6 {[%clk 0:00:45]}  Rc8 {[%clk 0:00:42]} 24. Ng5 {[%clk 0:00:45]}  Qc6 {[%clk 0:00:24]} 25. Bg4 {[%clk 0:00:36]}  Bb3 {[%clk 0:00:20]} 26. Bxc8 {[%clk 0:00:26]}  Qxf6 {[%clk 0:00:19]} 0-1


[Site "https://www.chess.com"]

[Event "Titled Tuesday Blitz October 31 Early 2023"]
[White "Kostiukov, Alexandr"]
[Black "Semenova, Alina"]
[WhiteFideId "14108100"]
[BlackFideId "24113875"]
[WhiteElo "2428"]
[BlackElo "2158"]
[Result "0-1"]
[Round "6"]
[TimeControl "180+1"]
[Date "2023.10.31"]
[WhiteClock "0:00:00"]
[BlackClock "0:00:50"]
[Board "125"]

1. g3 {[%clk 0:03:00]}  Nf6 {[%clk 0:02:59]} 2. Bg2 {[%clk 0:03:00]}  d5 {[%clk 0:02:59]} 3. d3 {[%clk 0:03:00]}  e6 {[%clk 0:02:59]} 4. e4 {[%clk 0:03:00]}  Be7 {[%clk 0:03:00]} 5. e5 {[%clk 0:03:00]}  Nfd7 {[%clk 0:03:00]} 6. Qe2 {[%clk 0:03:01]}  O-O {[%clk 0:03:01]} 7. Nf3 {[%clk 0:03:01]}  c5 {[%clk 0:03:00]} 8. c4 {[%clk 0:03:01]}  dxc4 {[%clk 0:02:57]} 9. dxc4 {[%clk 0:03:01]}  Nc6 {[%clk 0:02:57]} 10. O-O {[%clk 0:03:01]}  Qc7 {[%clk 0:02:20]} 11. Bf4 {[%clk 0:02:59]}  b6 {[%clk 0:02:16]} 12. Nc3 {[%clk 0:02:58]}  a6 {[%clk 0:02:16]} 13. Rfd1 {[%clk 0:02:39]}  Bb7 {[%clk 0:02:09]} 14. Nd5 {[%clk 0:02:26]}  exd5 {[%clk 0:02:02]} 15. cxd5 {[%clk 0:02:26]}  Ncxe5 {[%clk 0:01:55]} 16. Nxe5 {[%clk 0:02:16]}  Nxe5 {[%clk 0:01:53]} 17. d6 {[%clk 0:02:05]}  Bxd6 {[%clk 0:01:47]} 18. Bxb7 {[%clk 0:02:05]}  Qxb7 {[%clk 0:01:46]} 19. Bxe5 {[%clk 0:01:52]}  Bxe5 {[%clk 0:01:41]} 20. Qxe5 {[%clk 0:01:52]}  Rae8 {[%clk 0:01:41]} 21. Qd5 {[%clk 0:01:46]}  Qxd5 {[%clk 0:01:34]} 22. Rxd5 {[%clk 0:01:45]}  Re6 {[%clk 0:01:35]} 23. Rad1 {[%clk 0:01:42]}  g6 {[%clk 0:01:35]} 24. Rd6 {[%clk 0:01:35]}  Rfe8 {[%clk 0:01:35]} 25. Rxe6 {[%clk 0:01:35]}  Rxe6 {[%clk 0:01:36]} 26. Kf1 {[%clk 0:01:35]}  Kg7 {[%clk 0:01:34]} 27. Rd7 {[%clk 0:01:34]}  b5 {[%clk 0:01:32]} 28. b3 {[%clk 0:01:33]}  Rc6 {[%clk 0:01:32]} 29. Ke2 {[%clk 0:01:32]}  h5 {[%clk 0:01:31]} 30. Kd3 {[%clk 0:01:30]}  Kf6 {[%clk 0:01:31]} 31. Kc3 {[%clk 0:01:28]}  Ke6 {[%clk 0:01:30]} 32. Ra7 {[%clk 0:01:25]}  c4 {[%clk 0:01:27]} 33. b4 {[%clk 0:01:09]}  Rd6 {[%clk 0:01:22]} 34. a4 {[%clk 0:00:53]}  f6 {[%clk 0:01:15]} 35. axb5 {[%clk 0:00:43]}  axb5 {[%clk 0:01:16]} 36. Rb7 {[%clk 0:00:43]}  Rd3+ {[%clk 0:01:15]} 37. Kc2 {[%clk 0:00:42]}  Rf3 {[%clk 0:01:15]} 38. Rxb5 {[%clk 0:00:41]}  Rxf2+ {[%clk 0:01:14]} 39. Kc3 {[%clk 0:00:42]}  Rxh2 {[%clk 0:01:14]} 40. Rb6+ {[%clk 0:00:34]}  Kf5 {[%clk 0:01:13]} 41. b5 {[%clk 0:00:30]}  Rg2 {[%clk 0:01:08]} 42. Rc6 {[%clk 0:00:23]}  Rxg3+ {[%clk 0:01:06]} 43. Kxc4 {[%clk 0:00:24]}  h4 {[%clk 0:01:05]} 44. b6 {[%clk 0:00:20]}  Rg1 {[%clk 0:01:05]} 45. Rc5+ {[%clk 0:00:20]}  Kg4 {[%clk 0:01:04]} 46. b7 {[%clk 0:00:20]}  Rc1+ {[%clk 0:00:58]} 47. Kd5 {[%clk 0:00:17]}  Rb1 {[%clk 0:00:58]} 48. Kc6 {[%clk 0:00:16]}  Rxb7 {[%clk 0:00:57]} 49. Kxb7 {[%clk 0:00:16]}  h3 {[%clk 0:00:57]} 50. Rc4+ {[%clk 0:00:11]}  Kg5 {[%clk 0:00:57]} 51. Kc6 {[%clk 0:00:10]}  h2 {[%clk 0:00:56]} 52. Rc1 {[%clk 0:00:10]}  Kg4 {[%clk 0:00:51]} 53. Kd5 {[%clk 0:00:10]}  f5 {[%clk 0:00:51]} 54. Ke5 {[%clk 0:00:08]}  f4 {[%clk 0:00:51]} 55. Ke4 {[%clk 0:00:05]}  g5 {[%clk 0:00:51]} 56. Rh1 {[%clk 0:00:03]}  Kg3 {[%clk 0:00:51]} 57. Rb1 {[%clk 0:00:03]}  g4 {[%clk 0:00:50]} 58. Rb3+ {[%clk 0:00:02]}  f3 {[%clk 0:00:50]} 59. Rb1 {[%clk 0:00:00]}  Kg2 {[%clk 0:00:50]} 0-1


[Site "https://www.chess.com"]

[Event "Titled Tuesday Blitz October 31 Early 2023"]
[White "Golubev, Mikhail"]
[Black "Mishra, Manoj"]
[WhiteFideId "14100983"]
[BlackFideId "5006007"]
[WhiteElo "2550"]
[BlackElo "2191"]
[Result "1-0"]
[Round "6"]
[TimeControl "180+1"]
[Date "2023.10.31"]
[WhiteClock "0:00:25"]
[BlackClock "0:00:05"]
[Board "127"]

1. e4 {[%clk 0:03:00]}  Nf6 {[%clk 0:02:58]} 2. e5 {[%clk 0:02:59]}  Nd5 {[%clk 0:02:57]} 3. Nc3 {[%clk 0:03:00]}  Nxc3 {[%clk 0:02:55]} 4. dxc3 {[%clk 0:03:01]}  d6 {[%clk 0:02:53]} 5. Nf3 {[%clk 0:02:59]}  Nc6 {[%clk 0:02:49]} 6. Bf4 {[%clk 0:02:59]}  Bg4 {[%clk 0:02:46]} 7. Bb5 {[%clk 0:02:49]}  e6 {[%clk 0:02:22]} 8. h3 {[%clk 0:02:41]}  Bh5 {[%clk 0:02:16]} 9. g4 {[%clk 0:02:36]}  Bg6 {[%clk 0:02:13]} 10. Qe2 {[%clk 0:02:34]}  Be7 {[%clk 0:02:11]} 11. O-O-O {[%clk 0:01:53]}  h5 {[%clk 0:01:30]} 12. exd6 {[%clk 0:01:45]}  cxd6 {[%clk 0:01:26]} 13. Ne5 {[%clk 0:01:41]}  dxe5 {[%clk 0:01:03]} 14. Rxd8+ {[%clk 0:01:38]}  Rxd8 {[%clk 0:01:02]} 15. Qxe5 {[%clk 0:01:12]}  Bf6 {[%clk 0:00:49]} 16. Qc7 {[%clk 0:01:04]}  hxg4 {[%clk 0:00:34]} 17. Qxb7 {[%clk 0:00:59]}  O-O {[%clk 0:00:25]} 18. Qxc6 {[%clk 0:00:53]}  Rc8 {[%clk 0:00:18]} 19. Qg2 {[%clk 0:00:47]}  Rc5 {[%clk 0:00:15]} 20. hxg4 {[%clk 0:00:37]}  Rd8 {[%clk 0:00:12]} 21. Qh2 {[%clk 0:00:28]}  Kf8 {[%clk 0:00:05]} 22. Bd6+ {[%clk 0:00:25]} 1-0


[Site "https://www.chess.com"]

[Event "Titled Tuesday Blitz October 31 Early 2023"]
[White "Kotlyar, Kirill"]
[Black "Shapiro, Daniel"]
[WhiteFideId "24145599"]
[BlackFideId "2001780"]
[WhiteElo "2443"]
[BlackElo "2304"]
[Result "1-0"]
[Round "6"]
[TimeControl "180+1"]
[Date "2023.10.31"]
[WhiteClock "0:00:30"]
[BlackClock "0:00:00"]
[Board "129"]

1. c4 {[%clk 0:02:42]}  e5 {[%clk 0:02:59]} 2. Nc3 {[%clk 0:02:42]}  Nf6 {[%clk 0:02:59]} 3. Nf3 {[%clk 0:02:42]}  Nc6 {[%clk 0:02:57]} 4. g3 {[%clk 0:02:43]}  d5 {[%clk 0:02:56]} 5. cxd5 {[%clk 0:02:42]}  Nxd5 {[%clk 0:02:57]} 6. Bg2 {[%clk 0:02:41]}  Nf6 {[%clk 0:02:50]} 7. O-O {[%clk 0:02:39]}  Be7 {[%clk 0:02:47]} 8. Rb1 {[%clk 0:02:37]}  a5 {[%clk 0:02:39]} 9. d3 {[%clk 0:02:36]}  O-O {[%clk 0:02:38]} 10. a3 {[%clk 0:02:35]}  Re8 {[%clk 0:02:35]} 11. Bg5 {[%clk 0:02:31]}  h6 {[%clk 0:02:31]} 12. Bxf6 {[%clk 0:02:31]}  Bxf6 {[%clk 0:02:32]} 13. b4 {[%clk 0:02:31]}  axb4 {[%clk 0:02:32]} 14. axb4 {[%clk 0:02:32]}  g6 {[%clk 0:02:04]} 15. b5 {[%clk 0:02:30]}  Nd4 {[%clk 0:01:53]} 16. e3 {[%clk 0:02:18]}  Ne6 {[%clk 0:01:40]} 17. Qb3 {[%clk 0:02:01]}  Nc5 {[%clk 0:01:31]} 18. Qc4 {[%clk 0:01:56]}  b6 {[%clk 0:01:18]} 19. d4 {[%clk 0:01:36]}  Be6 {[%clk 0:01:12]} 20. d5 {[%clk 0:01:34]}  Bd7 {[%clk 0:01:01]} 21. e4 {[%clk 0:01:30]}  Bg7 {[%clk 0:00:56]} 22. Ra1 {[%clk 0:01:29]}  f5 {[%clk 0:00:53]} 23. Nd2 {[%clk 0:01:29]}  Kh7 {[%clk 0:00:50]} 24. Nb3 {[%clk 0:01:28]}  Nxe4 {[%clk 0:00:35]} 25. Nxe4 {[%clk 0:01:25]}  fxe4 {[%clk 0:00:36]} 26. Bxe4 {[%clk 0:01:26]}  Bf5 {[%clk 0:00:36]} 27. Nd2 {[%clk 0:01:25]}  Qd6 {[%clk 0:00:25]} 28. f3 {[%clk 0:01:18]}  h5 {[%clk 0:00:24]} 29. Kg2 {[%clk 0:01:13]}  Bh6 {[%clk 0:00:22]} 30. Nb3 {[%clk 0:01:08]}  Rf8 {[%clk 0:00:14]} 31. Ra6 {[%clk 0:00:56]}  Bxe4 {[%clk 0:00:11]} 32. fxe4 {[%clk 0:00:56]}  h4 {[%clk 0:00:09]} 33. Rxa8 {[%clk 0:00:43]}  Rxa8 {[%clk 0:00:08]} 34. Rf7+ {[%clk 0:00:44]}  Kg8 {[%clk 0:00:08]} 35. Qxc7 {[%clk 0:00:42]}  Ra2+ {[%clk 0:00:07]} 36. Kh3 {[%clk 0:00:43]}  Qxc7 {[%clk 0:00:07]} 37. Rxc7 {[%clk 0:00:42]}  Rb2 {[%clk 0:00:08]} 38. Nc1 {[%clk 0:00:42]}  Rxb5 {[%clk 0:00:06]} 39. Nd3 {[%clk 0:00:42]}  Rb3 {[%clk 0:00:05]} 40. Nxe5 {[%clk 0:00:35]}  hxg3 {[%clk 0:00:04]} 41. Nxg6 {[%clk 0:00:32]}  gxh2+ {[%clk 0:00:03]} 42. Kxh2 {[%clk 0:00:32]}  Re3 {[%clk 0:00:00]} 43. e5 {[%clk 0:00:30]} 1-0


[Site "https://www.chess.com"]